Cogmind - Beta 14 @@@ ROGUE MODE // 2024.09.01 @ 20:59:20 Player: BadFPS Result: Destroyed by S-43 Plague with Heavy Machine Gun Performance ------------- Evolutions (7) 3500 Regions Visited (11) 2200 Robots Destroyed (171) 855 Value Destroyed (6580) 6580 Prototype IDs (20) 400 Alien Tech Used (0) 0 Bonus (897) 897 TOTAL SCORE: 14432 Bonus ------- High Alert Combat Kills 397 Entered DSFs 500 Cogmind --------- Core Integrity 0/1300 Matter 285/300 Energy 905/905 System Corruption 6% Temperature Cool (0) Movement Walking (108) Location -3/Testing Parts ------- > --- POWER (3) -------- Improved Ion Engine Graviton Reactor > --- PROPULSION (5) --- Myomer Leg Myomer Leg Myomer Leg Experimental Flexi-carbon Leg Experimental Flexi-carbon Leg > --- UTILITY (8) ------ Advanced Heat Sink Improved Energy Well Improved Melee Analysis Suite Improved Melee Analysis Suite Graphene Brace Hacking Suite > --- WEAPON (5) ------- Molecular Scythe Molecular Scythe > --- INVENTORY (5) ---- Micro Antimatter Reactor Advanced Heat Sink Improved Energy Well (400) Micro-nuke Launcher Micro-nuke Launcher Peak State ------------ > --- POWER ------------ Light Antimatter Reactor Micro Antimatter Reactor Micro Antimatter Reactor > --- PROPULSION ------- Flexi-carbon Leg Myomer Leg Myomer Leg Myomer Leg Advanced Myomer Leg > --- UTILITY ---------- Advanced Heat Sink Advanced Heat Sink Improved Energy Well Improved Energy Well Improved Energy Well Improved Weapon Shielding Improved Weapon Shielding Graphene Brace > --- WEAPON ----------- Coil Gun Railgun Plasma Sword Molecular Scythe Molecular Scythe > --- INVENTORY -------- Micro Antimatter Reactor Quantum Rifle Neutron Cannon Micro-nuke Launcher Micro-nuke Launcher [Rating: 139] Favorites ----------- Power Cold Fusion Reactor Engine Improved Deuterium Engine Power Core Light Nuclear Core Reactor Cold Fusion Reactor Propulsion Carbon-fiber Leg Treads Medium Treads Leg Carbon-fiber Leg Wheel Compact Wheel Hover Unit Hover Unit Flight Unit Electron Diverter Utility Advanced Heat Sink Device Advanced Heat Sink Storage Small Storage Unit Processor Improved Signal Interpreter Hackware System Shield Protection Improved Light Armor Plating Weapon Neutron Cannon Energy Gun Plasma Rifle Energy Cannon Neutron Cannon Ballistic Gun Coil Gun Ballistic Cannon Advanced Assault Cannon Launcher Rocket Launcher Special Weapon Mining Laser Slashing Weapon Plasma Sword Build | -11 -10 -9 -9 -8 -7 -7 -6 -5 -4 -3 -3 ------- Run | Yrd Mat Mat Min Mat Fac DSF Fac Fac Fac Res Tes Slots Evolved 14 | . . 2 . 2 2 . 2 2 2 2 . Power 2 | . . . . . 1 . . . 1 . . Propulsion 3 | . . 1 . . . . . 1 . 1 . Utility 6 | . . 1 . 2 . . 2 . 1 . . Weapon 3 | . . . . . 1 . . 1 . 1 . Parts Attached 306 | 7 22 7 10 59 10 35 43 19 21 56 17 Power 47 | 1 3 1 1 8 1 4 7 4 3 11 3 Engine 20 | 1 2 . 1 5 . 3 2 3 1 1 1 Core 10 | . 1 1 . 3 1 1 2 1 . . . Reactor 17 | . . . . . . . 3 . 2 10 2 Propulsion 76 | 2 7 1 2 11 3 10 5 3 9 17 6 Treads 11 | . 2 . . 7 . 1 . . . 1 . Leg 48 | . . . 2 3 3 9 5 3 9 9 5 Wheel 3 | 2 . . . 1 . . . . . . . Hover 11 | . 5 1 . . . . . . . 4 1 Flight 3 | . . . . . . . . . . 3 . Utility 79 | 2 1 2 4 10 3 9 16 4 5 16 7 Device 50 | 1 . 1 3 5 1 8 13 2 4 10 2 Storage 5 | 1 . . 1 . . . . . . 3 . Processor 11 | . 1 1 . 2 . . 1 1 1 . 4 Hackware 4 | . . . . 1 1 . 1 . . . 1 Protection 9 | . . . . 2 1 1 1 1 . 3 . Artifact . | . . . . . . . . . . . . Weapon 104 | 2 11 3 3 30 3 12 15 8 4 12 1 Energy Gun 39 | 2 3 . 1 15 1 3 8 4 . 2 . Energy Cannon 26 | . 4 1 . 2 2 4 5 4 2 1 1 Ballistic Gun 5 | . . . . . . 2 . . . 3 . Ballistic Cannon 7 | . . . . 4 . 3 . . . . . Launcher 12 | . . . 2 6 . . 1 . 1 2 . Special Weapon 10 | . 4 2 . 3 . . 1 . . . . Impact Weapon . | . . . . . . . . . . . . Slashing Weapon 5 | . . . . . . . . . 1 4 . Piercing Weapon . | . . . . . . . . . . . . Special Melee Weapon . | . . . . . . . . . . . . Unidentified Prototypes 20 | . . . . 2 1 . 3 1 3 7 3 Parts Lost 97 | . 2 4 . 20 . 19 15 . 11 16 10 Power 17 | . 1 . . 3 . 3 1 . 3 3 3 Propulsion 31 | . 1 3 . 8 . 4 3 . 3 6 3 Utility 25 | . . . . 3 . 5 7 . 2 7 1 Weapon 24 | . . 1 . 6 . 7 4 . 3 . 3 Highest Loss Streak 10 | . 2 4 . 8 . 10 8 . 10 10 9 To Critical Strikes . | . . . . . . . . . . . . Average Slot Usage (%) 83 | . 97 58 39 82 95 69 96 90 96 65 90 Engine 3 | . 7 . . 3 . 4 2 5 11 . . Core 2 | . 5 5 . 3 12 3 1 . . . . Reactor 3 | . . . . . . . 8 4 1 9 12 Treads 2 | . 2 . . 8 3 . . . . . . Leg 12 | . . . 2 11 17 14 19 17 20 8 22 Hover 3 | . 24 17 . . . . . . . 6 . Device 19 | . 2 5 21 10 9 17 35 27 28 22 9 Storage 4 | . 14 7 . 9 7 . . . . 2 4 Processor 5 | . 11 10 11 9 7 . . 4 6 . 9 Hackware 4 | . . . . 8 8 9 6 . . . 3 Protection 2 | . . . . 3 4 . . 2 4 1 3 Energy Gun 6 | . 13 . 1 5 13 3 4 19 . . . Energy Cannon 6 | . 7 9 . . 9 7 14 3 20 . 3 Ballistic Cannon 1 | . . . . 4 . 2 . . . . . Special Weapon 1 | . 5 2 . 1 . . . . . . . Slashing Weapon 1 | . . . . . . . . . . 6 13 Peak Build Rating 139 | 7 10 13 9 34 49 61 72 81 107 139 139 Average Rating 50 | 5 8 8 5 21 44 37 65 70 94 92 126 On Entrance 41 | . 7 10 3 9 30 48 56 59 81 56 136 Naked Turns . | . . . . . . . . . . . . Heaviest Build 80 | 11 16 17 9 27 45 54 58 58 80 78 68 Greatest Support 129 | 26 26 18 20 84 54 60 60 60 90 128 129 Greatest Overweight (x) 11 | 2 3 2 1 7 10 9 1 1 1 11 . Average Overweight (x) . | . . . . . . . . . . . . Largest Inventory Capacity 8 | 8 8 8 8 8 8 8 5 5 5 5 5 Average Capacity 6 | 7 8 7 5 8 8 5 5 5 5 5 5 Most Carried 8 | 5 8 8 6 8 8 8 5 5 5 5 5 Average Carried 5 | 2 7 5 4 6 7 4 3 3 4 3 4 Final Capacity 8 | 8 8 5 8 8 8 5 5 5 5 5 5 Final Carried 8 | 5 8 5 6 6 8 5 2 5 4 5 5 Class Distribution -------------------- 30% | Scavenger-Mutant 23% | Scavenger-Gunner 16% | Mutant 10% | Gunner 6% | Scavenger-Tank 4% | Scout 3% | Tank Dominant Class ---------------- Scavenger-Mutant | -10/Materials Mutant | -9/Materials Scout | -9/Mines Scavenger-Mutant | -8/Materials Tank | -7/Factory Scavenger-Mutant | -7/DSF Gunner | -6/Factory Scavenger-Gunner | -5/Factory Scavenger-Gunner | -4/Factory Scavenger-Mutant | -3/Research Scavenger-Gladiator | -3/Testing Resources | -11 -10 -9 -9 -8 -7 -7 -6 -5 -4 -3 -3 ----------- Run | Yrd Mat Mat Min Mat Fac DSF Fac Fac Fac Res Tes Matter Collected 4186 | 270 192 107 188 1280 . 620 445 198 191 537 158 Remotely . | . . . . . . . . . . . . Salvage Created 7813 | 146 389 48 220 1174 . 482 2023 838 609 1431 453 Parts 327 | 6 29 2 10 60 . 22 72 19 29 54 24 Haulers Intercepted 10 | . 1 . . 2 . . 3 1 1 2 . Recyclers Shooed 13 | 1 2 . 1 4 . . 3 . . 2 . Parts Field Recycled . | . . . . . . . . . . . . Retrieved Matter . | . . . . . . . . . . . . Parts Self-Destructed . | . . . . . . . . . . . . Prevented . | . . . . . . . . . . . . Kills | -11 -10 -9 -9 -8 -7 -7 -6 -5 -4 -3 -3 ------- Run | Yrd Mat Mat Min Mat Fac DSF Fac Fac Fac Res Tes Combat Hostiles Destroyed 119 | . 5 3 6 31 . 12 28 9 8 12 5 Melee 16 | . . . . . . . . . . 11 5 Guns 23 | . 1 . . 8 . 4 6 3 . 1 . Cannons 63 | . 4 3 . 15 . 8 20 6 7 . . AOE 16 | . . . 6 8 . . 1 . 1 . . Classes Destroyed 18 | 2 5 . . 7 . 2 2 . . . . Worker 6 | . . . . 4 . . . 2 . . . Builder 10 | . . . . 3 . . 3 2 . 2 . Tunneler 2 | 2 . . . . . . . . . . . Hauler 10 | . 1 . . 2 . . 3 1 1 2 . Recycler 12 | 1 2 . 2 3 . . . 1 . 2 1 Mechanic 1 | . . . . . . . 1 . . . . Operator 3 | . 1 . . . . . 1 . 1 . . Watcher 8 | . 3 . . 2 . . 1 1 1 . . Swarmer 24 | . 3 3 3 7 . 3 4 . . . 1 Grunt 48 | . 2 . 3 16 . 4 9 4 5 3 2 Brawler 2 | . . . . 1 . . 1 . . . . Duelist 1 | . . . . 1 . . . . . . . Protector 1 | . . . . 1 . . . . . . . Sentry 13 | . . . . 4 . . 7 . . 2 . Specialist 3 | . . . . . . 3 . . . . . Hunter 14 | . . . . 1 . 1 5 . 1 4 2 Programmer 12 | . . . . . . . 2 5 2 3 . Heavy 1 | . . . . . . 1 . . . . . Best Kill Streak 8 | 3 4 3 3 8 . 5 7 5 3 6 5 Combat Bots Only 6 | . 4 3 3 6 . 5 5 4 2 4 4 Max Kills in Single Turn 3 | 1 1 1 2 3 . 1 2 3 1 1 1 Gunslinging . | . . . . . . . . . . . . Exploded 2 | . . . 2 2 . . 1 . 1 . . Melee 1 | . . . . . . . . . . 1 1 Uniques/NPCs Destroyed . | . . . . . . . . . . . . Combat | -11 -10 -9 -9 -8 -7 -7 -6 -5 -4 -3 -3 -------- Run | Yrd Mat Mat Min Mat Fac DSF Fac Fac Fac Res Tes Hostile Shots Fired 1432 | . 71 71 8 252 . 188 325 19 95 289 114 Missed 410 | . 11 15 3 56 . 45 121 6 28 100 25 Damage Taken 16245 | . 554 602 71 2794 63 2794 2398 296 1796 3222 1655 Core 3372 | . 128 279 47 451 . 340 408 84 318 1072 245 Absorbed by Shields . | . . . . . . . . . . . . Redirected to Shielding 266 | . . . . . . . . . . 176 90 Regen/Repaired (Parts) 7 | . 7 . . . . . . . . . . Core Remaining (%) 56 | 100 48 . 18 18 . 51 52 91 72 . . Volleys Fired 385 | 8 53 18 13 119 1 44 83 16 20 9 1 Largest 4 | 2 2 2 1 2 3 3 3 4 4 4 1 Hottest 360 | 80 120 120 65 131 191 193 255 350 360 249 90 Shots Fired 837 | 15 76 28 13 199 3 107 232 64 72 26 2 Gun 295 | 15 40 . 5 61 2 56 56 37 1 22 . Cannon 479 | . 23 20 . 108 1 51 172 27 71 4 2 Launcher 35 | . . . 8 26 . . 1 . . . . Special 28 | . 13 8 . 4 . . 3 . . . . Kinetic 161 | . . . . 98 . 49 . . . 14 . Thermal 641 | 15 76 28 5 75 3 58 231 64 72 12 2 Explosive 29 | . . . 8 20 . . 1 . . . . Electromagnetic 6 | . . . . 6 . . . . . . . Robot Hit Streak 31 | 5 12 6 5 12 . 31 12 25 9 6 6 Robot Miss Streak 15 | 2 2 4 3 6 . 15 4 1 3 1 . Penetration Max . | . . . . . . . . . . . . Secondary Targets 3 | . . . . 1 . 2 . . . . . Max Gunslinging Chain 1 | . . . . 1 . 1 . . . . . Shots Hit Robots 605 | 10 44 10 7 119 . 83 145 48 42 80 17 Core Hits 293 | 4 20 4 13 69 . 30 68 30 17 29 9 Critical Kills 1 | . . . . . . . 1 . . . . Critical Parts Destroyed . | . . . . . . . . . . . . Critical Strikes 28 | . . . 1 9 . . 5 3 . 10 . Burn 12 | . . . 1 4 . . 4 3 . . . Meltdown 1 | . . . . . . . 1 . . . . Blast 5 | . . . . 5 . . . . . . . Sever 10 | . . . . . . . . . . 10 . Melee Attacks 102 | . . . . . . . . . . 82 20 Impact . | . . . . . . . . . . . . Slashing 102 | . . . . . . . . . . 82 20 Piercing . | . . . . . . . . . . . . Sneak Attacks 8 | . . . . . . . . . . 7 1 Combat Hostiles . | . . . . . . . . . . . . Follow-up Attacks 13 | . . . . . . . . . . 9 4 Damage Inflicted 19915 | 114 588 193 462 3770 . 1726 4824 1836 1749 3735 918 Guns 4387 | 114 329 . 73 644 . 879 1041 938 . 369 . Cannons 9308 | . 248 191 . 1863 . 847 3480 865 1663 115 36 Explosions 2057 | . . . 389 1257 . . 298 30 83 . . Melee 4133 | . . . . . . . . . . 3251 882 Ramming 30 | . 11 2 . 6 . . 5 3 3 . . Kinetic 2583 | . . . . 1698 . 663 . . . 222 . Thermal 11225 | 114 577 191 73 809 . 1063 4521 1833 1746 262 36 Explosive 1634 | . . . 389 1005 . . 240 . . . . Electromagnetic 310 | . . . . 252 . . 58 . . . . Impact . | . . . . . . . . . . . . Slashing 4133 | . . . . . . . . . . 3251 882 Piercing . | . . . . . . . . . . . . Highest Corruption 6 | . . . . 1 . . 5 . 3 6 6 Average Corruption 3 | . . . . 1 . . 3 . 2 5 6 Corruption Purged . | . . . . . . . . . . . . Corruption Blocked . | . . . . . . . . . . . . Effects 47 | . . . . 4 . . 20 . 3 9 11 Message Errors 6 | . . . . 1 . . 1 . . 4 . Matter Fused 9 | . . . . 1 . . 4 . 1 1 2 Heat Flow Errors 9 | . . . . 1 . . 5 . . . 3 Energy Discharges 7 | . . . . . . . 3 . . 2 2 Parts Fused 1 | . . . . . . . . . . . 1 Data Loss (minor) 3 | . . . . . . . 2 . . . 1 Data Loss (major) 4 | . . . . . . . 2 . . 1 1 Misfires 4 | . . . . 1 . . 1 . . 1 1 Weapon Failures 4 | . . . . . . . 2 . 2 . . Overload Shots . | . . . . . . . . . . . . Overflow Damage 695 | . . 15 . 156 . 3 116 84 79 234 8 Projectiles 401 | . . 15 . 103 . 3 97 84 79 20 . Explosions 72 | . . . . 53 . . 19 . . . . Melee 222 | . . . . . . . . . . 214 8 Knockbacks 38 | . . . . 30 . 8 . . . . . Impact . | . . . . . . . . . . . . Kinetic 35 | . . . . 27 . 8 . . . . . Secondary 3 | . . . . 3 . . . . . . . Self-Inflicted Damage 137 | . . 1 9 72 . . 23 32 . . . Shots 8 | . . . 1 5 . . 1 1 . . . Rammed 11 | . 6 2 . 3 . . . . . . . Targets Rammed 16 | . 6 2 . 5 . . 1 1 1 . . Kicked 3 | . . . . . . . 1 1 1 . . Crushed 2 | . . . . 2 . . . . . . . Highest Temperature 588 | 54 331 588 24 416 81 166 276 335 452 141 265 Average Temperature 99 | 24 76 159 11 110 45 38 90 122 140 65 100 Received Heat Transfer 3111 | . 102 204 18 1071 . 765 549 18 84 120 180 Effects 19 | . 1 13 . 3 . . . . 2 . . Shutdowns 1 | . . 1 . . . . . . . . . Energy Bleed 3 | . 1 1 . 1 . . . . . . . Interference 4 | . . 2 . 2 . . . . . . . Matter Decay 1 | . . 1 . . . . . . . . . Short Circuit 2 | . . 2 . . . . . . . . . Damage (major) 8 | . . 6 . . . . . . 2 . . Siege Activations . | . . . . . . . . . . . . Robots Corrupted 1 | . . . . 1 . . . . . . . Combat Hostiles . | . . . . . . . . . . . . Parts Fried 3 | . . . . 2 . . 1 . . . . Impact Corruptions 1 | . . . . 1 . . . . . . . Robots Melted 3 | . . . . . . . 2 1 . . . Combat Hostiles 1 | . . . . . . . 1 . . . . Parts Melted 42 | . 1 2 . 2 . 2 25 10 . . . Heat Transferred 15166 | 250 1268 407 259 2017 . 1813 6592 2325 50 185 . Parts Sabotaged . | . . . . . . . . . . . . Parts Stolen . | . . . . . . . . . . . . Parts Stripped . | . . . . . . . . . . . . Power Chain Reactions 1 | . . . . . . . . 1 . . . Alert | -11 -10 -9 -9 -8 -7 -7 -6 -5 -4 -3 -3 ------- Run | Yrd Mat Mat Min Mat Fac DSF Fac Fac Fac Res Tes Peak Influence 706 | 15 166 101 227 653 293 157 706 425 411 314 151 Initial 345 | . 9 9 37 14 293 67 81 345 154 146 112 Average 220 | 4 83 59 61 267 272 117 353 295 263 159 120 Maximum Alert Level 3 | . . . 1 2 1 . 3 2 2 1 . Low Security (%) 53 | 100 100 100 90 42 10 100 26 . 37 83 100 Level 1 34 | . . . 9 23 89 . 44 99 61 16 . Level 2 11 | . . . . 34 . . 25 . 1 . . Level 3 . | . . . . . . . 2 . . . . Level 4 . | . . . . . . . . . . . . Level 5 . | . . . . . . . . . . . . High Security . | . . . . . . . . . . . . Max Security . | . . . . . . . . . . . . Sterilizations 1 | . . . . . . 1 . . . . . Squads Dispatched 28 | . . 1 . 7 1 2 6 3 4 3 1 Investigation 4 | . . . . 1 1 . . . 2 . . Extermination 7 | . . . . . . . 1 2 1 2 1 Reinforcement 12 | . . 1 . 4 . 2 2 1 1 1 . Assault 1 | . . . . 1 . . . . . . . Garrison 4 | . . . . 1 . . 3 . . . . Intercept . | . . . . . . . . . . . . Searches Triggered . | . . . . . . . . . . . . Construction Impeded 5 | . . 1 . 3 . . 1 . . . . Haulers Reinforced 4 | . . . . . . . 1 1 1 1 . Active Scanning Responses . | . . . . . . . . . . . . Cargo Convoy Interrupts . | . . . . . . . . . . . . Stealth | -11 -10 -9 -9 -8 -7 -7 -6 -5 -4 -3 -3 --------- Run | Yrd Mat Mat Min Mat Fac DSF Fac Fac Fac Res Tes Distress Signals 12 | . 1 1 . 4 . . 1 1 . 4 . Communications Jammed 18 | . . . . . . . 17 . 1 . . Distress Signals 15 | . . . . . . . 15 . . . . Times Spotted 203 | . 12 17 5 49 . 12 40 11 12 34 11 Peak Tracking Total 13 | . 5 13 3 7 . 4 6 4 4 7 6 Tactical Retreats 22 | . 1 1 . 4 . . 6 1 . 9 . Traps | -11 -10 -9 -9 -8 -7 -7 -6 -5 -4 -3 -3 ------- Run | Yrd Mat Mat Min Mat Fac DSF Fac Fac Fac Res Tes Traps Triggered 9 | . 3 . . 2 1 1 2 . . . . Indirectly . | . . . . . . . . . . . . Trap Hack Attempts . | . . . . . . . . . . . . Triggered . | . . . . . . . . . . . . Disarmed . | . . . . . . . . . . . . Reprogrammed . | . . . . . . . . . . . . Reused . | . . . . . . . . . . . . Traps Extracted . | . . . . . . . . . . . . Installed . | . . . . . . . . . . . . Triggered . | . . . . . . . . . . . . Machines | -11 -10 -9 -9 -8 -7 -7 -6 -5 -4 -3 -3 ---------- Run | Yrd Mat Mat Min Mat Fac DSF Fac Fac Fac Res Tes Machines Disabled 21 | . . . . 3 . . 10 . 8 . . Max in Single Turn 8 | . . . . 2 . . 2 . 8 . . Garrison Access 2 | . . . . 1 . . . . . 1 . Machines Repaired . | . . . . . . . . . . . . Machines Dismantled . | . . . . . . . . . . . . Machines Sabotaged . | . . . . . . . . . . . . Overloaded Fab Kills . | . . . . . . . . . . . . Hacking | -11 -10 -9 -9 -8 -7 -7 -6 -5 -4 -3 -3 --------- Run | Yrd Mat Mat Min Mat Fac DSF Fac Fac Fac Res Tes Machines Accessed 24 | . 6 1 . 2 3 . 6 . 1 4 1 Terminals 17 | . 5 1 . 1 2 . 3 . 1 3 1 Fabricators 1 | . . . . . 1 . . . . . . Repair Stations 3 | . 1 . . . . . 2 . . . . Recycling Units 1 | . . . . . . . 1 . . . . Scanalyzers 1 | . . . . 1 . . . . . . . Garrison Access 1 | . . . . . . . . . . 1 . Total Hacks 62 | . 15 3 . 14 6 . 14 . 3 5 2 Successful 33 | . 7 1 . 12 3 . 5 . 1 3 1 Failed 29 | . 8 2 . 2 3 . 9 . 2 2 1 Catastrophic 6 | . 1 . . . . . 2 . . 2 1 Database Lockouts . | . . . . . . . . . . . . Manual 20 | . 10 3 . 2 1 . 1 . . 2 1 Terminals 36 | . 13 3 . 2 3 . 6 . 3 4 2 Fabricators 3 | . . . . . 3 . . . . . . Repair Stations 9 | . 2 . . . . . 7 . . . . Recycling Units 1 | . . . . . . . 1 . . . . Scanalyzers 12 | . . . . 12 . . . . . . . Garrison Access 1 | . . . . . . . . . . 1 . Terminal Hacks 10 | . 3 . . . 1 . 3 . 1 1 1 Record 4 | . . . . . . . 1 . 1 1 1 Open DSF 2 | . . . . . 1 . 1 . . . . Branch Access Points 1 | . 1 . . . . . . . . . . Emergency Access Points 1 | . 1 . . . . . . . . . . Locate Traps 2 | . 1 . . . . . 1 . . . . Fabricator Hacks 2 | . . . . . 2 . . . . . . Load Schematic 1 | . . . . . 1 . . . . . . Build 1 | . . . . . 1 . . . . . . Repair Station Hacks 3 | . 2 . . . . . 1 . . . . Scan Component 2 | . 1 . . . . . 1 . . . . Repair 1 | . 1 . . . . . . . . . . Recycling Unit Hacks 1 | . . . . . . . 1 . . . . Report Inventory 1 | . . . . . . . 1 . . . . Scanalyzer 12 | . . . . 12 . . . . . . . Insert Component 6 | . . . . 6 . . . . . . . Analyze 6 | . . . . 6 . . . . . . . Garrison Access Hacks 1 | . . . . . . . . . . 1 . Seal Access 1 | . . . . . . . . . . 1 . Unauthorized Hacks 4 | . 2 1 . . . . . . . 1 . Terminals 4 | . 2 1 . . . . . . . 1 . Botnet 4 | . 2 1 . . . . . . . 1 . Fabricators . | . . . . . . . . . . . . Repair Stations . | . . . . . . . . . . . . Recycling Units . | . . . . . . . . . . . . Scanalyzers . | . . . . . . . . . . . . Garrison Access . | . . . . . . . . . . . . Data Cores Recovered 3 | . 1 . . . . . 1 . 1 . . Used 1 | . . . . . . . 1 . . . . Hacking Detections 17 | . 4 1 . 2 2 . 3 . 1 3 1 Full Trace Events 4 | . 1 . . 1 1 . . . 1 . . Feedback Events . | . . . . . . . . . . . . Feedback Blocked . | . . . . . . . . . . . . Robot Schematics Acquired . | . . . . . . . . . . . . Robots Built . | . . . . . . . . . . . . Authchips . | . . . . . . . . . . . . Time . | . . . . . . . . . . . . Total Robot Build Rating . | . . . . . . . . . . . . Part Schematics Acquired 5 | . . . . 5 . . . . . . . Parts Built 3 | . . . . . 3 . . . . . . Authchips . | . . . . . . . . . . . . Time 25 | . . . . . 25 . . . . . . Total Part Build Rating 3 | . . . . . 3 . . . . . . Parts Repaired 1 | . 1 . . . . . . . . . . Time 26 | . 26 . . . . . . . . . . Parts Recycled . | . . . . . . . . . . . . Recycled Matter . | . . . . . . . . . . . . Retrieved Matter . | . . . . . . . . . . . . Retrieved Components . | . . . . . . . . . . . . Parts Scanalyzed 5 | . . . . 5 . . . . . . . Part Schematics Acquired 5 | . . . . 5 . . . . . . . Parts Damaged . | . . . . . . . . . . . . Bothacking | -11 -10 -9 -9 -8 -7 -7 -6 -5 -4 -3 -3 ------------ Run | Yrd Mat Mat Min Mat Fac DSF Fac Fac Fac Res Tes Used RIF Installer . | . . . . . . . . . . . . Robots Hacked . | . . . . . . . . . . . . Non-combat . | . . . . . . . . . . . . Combat . | . . . . . . . . . . . . Robot Hacks Applied . | . . . . . . . . . . . . Relay Couplers Released 2 | . . . . 2 . . . . . . . Machine Destruction 2 | . . . . 2 . . . . . . . Fabnet Peak Effective % . | . . . . . . . . . . . . Robots Rewired . | . . . . . . . . . . . . Allies Hacked . | . . . . . . . . . . . . Hacks Repelled . | . . . . . . . . . . . . Allies | -11 -10 -9 -9 -8 -7 -7 -6 -5 -4 -3 -3 -------- Run | Yrd Mat Mat Min Mat Fac DSF Fac Fac Fac Res Tes Total Allies . | . . . . . . . . . . . . Largest Group . | . . . . . . . . . . . . Highest-Rated Group . | . . . . . . . . . . . . Highest-Rated Ally . | . . . . . . . . . . . . Total Orders . | . . . . . . . . . . . . Ally Attacks . | . . . . . . . . . . . . Total Damage . | . . . . . . . . . . . . Kills . | . . . . . . . . . . . . Allies Corrupted . | . . . . . . . . . . . . Allies Melted . | . . . . . . . . . . . . Intel | -11 -10 -9 -9 -8 -7 -7 -6 -5 -4 -3 -3 ------- Run | Yrd Mat Mat Min Mat Fac DSF Fac Fac Fac Res Tes Robot Analysis Total . | . . . . . . . . . . . . Derelict Logs Recovered 2 | . . . 2 . . . . . . . . Drone Launches . | . . . . . . . . . . . . Drone Recoveries . | . . . . . . . . . . . . Exploration | -11 -10 -9 -9 -8 -7 -7 -6 -5 -4 -3 -3 ------------- Run | Yrd Mat Mat Min Mat Fac DSF Fac Fac Fac Res Tes Turns Passed 8687 | 93 858 168 569 1800 445 529 1407 904 744 871 299 Spaces Moved 5226 | 51 710 165 801 716 243 269 709 485 314 568 195 Core 929 | 14 1 97 734 3 2 73 . . . 5 . Treads 328 | . 16 . . 250 57 5 . . . . . Legs 2750 | . . . 67 429 184 191 709 485 314 176 195 Wheels 79 | 37 8 . . 34 . . . . . . . Hover 1043 | . 685 68 . . . . . . . 290 . Flight 97 | . . . . . . . . . . 97 . Fastest Speed 29 | 50 56 50 50 115 120 50 120 120 120 29 90 Average Speed 106 | 102 72 53 60 144 132 115 132 143 160 73 106 Slowest Speed 600 | 150 200 180 120 400 550 500 200 190 190 600 108 Overloaded Moves . | . . . . . . . . . . . . Propulsion Burnouts . | . . . . . . . . . . . . Robots Hopped . | . . . . . . . . . . . . Cave-ins Triggered . | . . . . . . . . . . . . Exploration Rate (%) 33 | 5 74 21 95 40 7 85 19 9 10 10 21 Regions Visited 11 Branch Regions 2 Pre-discovered Areas 1 | . . . 1 . . . . . . . . Known Exits Taken 4 | . 1 . 1 1 1 . . . . . . Unknown Exits Taken 6 | 1 . 1 . . . . 1 1 1 1 . Scrap Searched 2 | . . . 2 . . . . . . . . Spaces Dug 28 | . 13 8 . 4 . . 1 . 2 . . Terrain Destroyed 416 | . 13 8 72 226 . . 57 9 27 3 1 Melee . | . . . . . . . . . . . . Projectile 115 | . 13 8 . 36 . . 35 5 14 3 1 AOE 301 | . . . 72 190 . . 22 4 13 . . Terrain Rammed . | . . . . . . . . . . . . Walls Destroyed . | . . . . . . . . . . . . Machines Disabled . | . . . . . . . . . . . . Actions | -11 -10 -9 -9 -8 -7 -7 -6 -5 -4 -3 -3 --------- Run | Yrd Mat Mat Min Mat Fac DSF Fac Fac Fac Res Tes Total 7438 | 73 941 205 876 1262 362 398 1003 660 507 888 263 Wait 1187 | 3 132 . 43 331 95 25 134 116 137 148 23 Move 5216 | 50 709 164 800 715 242 268 708 484 314 567 195 Hop . | . . . . . . . . . . . . Pick Up 66 | 5 10 2 4 10 6 10 8 6 2 3 . Fast Attach 183 | 7 10 1 4 29 5 25 24 12 7 44 15 Attach 64 | . 6 5 6 15 2 6 11 2 2 9 . Detach 41 | . . 4 4 10 2 . 4 2 2 11 2 Swap 59 | . 6 1 . 15 3 4 8 5 12 3 2 Drop 137 | . 9 8 2 13 6 16 22 16 11 23 11 Fire 385 | 8 53 18 13 119 1 44 83 16 20 9 1 Melee 85 | . . . . . . . . . . 71 14 Ram 2 | . . 2 . . . . . . . . . Kick 2 | . . . . . . . 1 1 . . . Crush 11 | . 6 . . 5 . . . . . . . Escape Stasis . | . . . . . . . . . . . . Rewire . | . . . . . . . . . . . . Trap . | . . . . . . . . . . . . Miscellaneous . | . . . . . . . . . . . . Route ------- -11/Scrapyard -10/Materials (discovered 3 exits: *Mat x2 / Min) -9/Materials -9/Mines (discovered 2 exits: *Mat x2) -8/Materials -7/Factory -7/DSF -6/Factory -5/Factory (discovered 2 exits: *Fac / [*Upp]) -4/Factory -3/Research (discovered 2 exits: *Tes x2) -3/Testing History --------- Turn | Location | Event 11 | -11/Scrapyard | Discovered new exit (range 16) 94 | -11/Scrapyard | Entered Materials 241 | -10/Materials | Discovered new exit (range 16) 255 | -10/Materials | Identified exit to Materials 380 | -10/Materials | Identified exit to Mines 421 | -10/Materials | Repaired Lgt. Ion Engine 578 | -10/Materials | Core integrity fell below 50% 631 | -10/Materials | Discovered exit to Materials (range 16) 917 | -10/Materials | Build established: Scavenger-Mutant 952 | -10/Materials | Entered another Materials area 952 | -9/Materials | Evolved 2 slots: Propulsion x1, Utility x1 1078 | -9/Materials | Core integrity fell below 50% 1108 | -9/Materials | Lost 4 parts (3n1w) 1115 | -9/Materials | Discovered new exit (range 5) 1120 | -9/Materials | Entered Mines 1177 | -9/Mines | Learned location of Storage (-7) 1181 | -9/Mines | Found a hidden stash of uninstalled traps 1237 | -9/Mines | Learned Materials garrison access intel 1263 | -9/Mines | Received a Rocket Launcher from a helpful Derelict 1296 | -9/Mines | Discovered new exit (range 3) 1298 | -9/Mines | Identified exit to Materials 1459 | -9/Mines | Discovered exit to Materials (range 13) 1465 | -9/Mines | Core integrity fell below 20% 1689 | -9/Mines | Entered Materials 1689 | -8/Materials | Evolved 2 slots: Utility x2 1690 | -8/Materials | Loaded intel: 1 garrison access location 2688 | -8/Materials | Lost 4 parts (3n1u) 2721 | -8/Materials | Discovered new exit (range 16) 2906 | -8/Materials | Build established: Mutant 3015 | -8/Materials | Garrison activated, responded to threat 3104 | -8/Materials | Core integrity fell below 50% 3227 | -8/Materials | Core integrity fell below 20% 3265 | -8/Materials | Lost 8 parts (1p4n3w) 3487 | -8/Materials | Identified exit to Factory 3489 | -8/Materials | Entered Factory 3489 | -7/Factory | Evolved 2 slots: Power x1, Weapon x1 3896 | -7/Factory | Fabricated Mining Laser (x3) 3932 | -7/Factory | Identified exit to DSF 3934 | -7/Factory | Entered DSF 3984 | -7/DSF | Additional patrols routed to DSF 4100 | -7/DSF | Lost 6 parts (2p1n1u2w) 4184 | -7/DSF | Discovered new exit (range 13) 4195 | -7/DSF | Lost 10 parts (1p2n2u5w) 4226 | -7/DSF | Sterilization system engaged 4246 | -7/DSF | Ambient heat levels rising (+10) 4261 | -7/DSF | Ambient heat levels rising (+10) 4276 | -7/DSF | Ambient heat levels rising (+10) 4291 | -7/DSF | Ambient heat levels rising (+10) 4306 | -7/DSF | Ambient heat levels rising (+10) 4321 | -7/DSF | Ambient heat levels rising (+10) 4336 | -7/DSF | Ambient heat levels rising (+10) 4351 | -7/DSF | Ambient heat levels rising (+10) 4366 | -7/DSF | Ambient heat levels rising (+10) 4381 | -7/DSF | Ambient heat levels rising (+10) 4396 | -7/DSF | Ambient heat levels rising (+10) 4411 | -7/DSF | Ambient heat levels rising (+10) 4426 | -7/DSF | Ambient heat levels rising (+10) 4441 | -7/DSF | Ambient heat levels rising (+10) 4456 | -7/DSF | Ambient heat levels rising (+10) 4463 | -7/DSF | Entered Factory 4463 | -6/Factory | Evolved 2 slots: Utility x2 4736 | -6/Factory | Build established: Scavenger-Gunner 5118 | -6/Factory | Build established: Gunner 5626 | -6/Factory | Garrison activated, responded to threat 5724 | -6/Factory | Lost 8 parts (1p2n3u2w) 5852 | -6/Factory | Discovered new exit (range 15) 5870 | -6/Factory | Entered another Factory area 5870 | -5/Factory | Evolved 2 slots: Propulsion x1, Weapon x1 5992 | -5/Factory | Build established: Scavenger-Tank 6301 | -5/Factory | Build established: Scavenger-Gunner 6584 | -5/Factory | Discovered new exit (range 9) 6749 | -5/Factory | Discovered new exit (range 11) 6774 | -5/Factory | Entered another Factory area 6774 | -4/Factory | Evolved 2 slots: Power x1, Utility x1 7000 | -4/Factory | Spotted B-86 Titan 7101 | -4/Factory | Found Prototype Launcher 7101 | -4/Factory | Identified Com. Tesla Bomb Launcher 7495 | -4/Factory | Discovered new exit (range 3) 7518 | -4/Factory | Entered Research 7518 | -3/Research | Evolved 2 slots: Propulsion x1, Weapon x1 7548 | -3/Research | Lost 10 parts (2p3n2u3w) 7575 | -3/Research | Spotted B-86 Titan 7808 | -3/Research | Build established: Scavenger-Mutant 7890 | -3/Research | Discovered new exit (range 11) 7977 | -3/Research | Core integrity fell below 50% 8007 | -3/Research | Lost 10 parts (2p3n5u) 8241 | -3/Research | Lost 5 parts (1p3n1u) 8292 | -3/Research | Core integrity fell below 20% 8326 | -3/Research | Discovered new exit (range 16) 8389 | -3/Research | Entered Testing 8406 | -3/Testing | Found Prototype Device 8406 | -3/Testing | Identified Exp. Shield Generator 8528 | -3/Testing | Spotted PD-0WVZZ4TZVL 8681 | -3/Testing | Lost 9 parts (2p3n1u3w) 8688 | -3/Testing | Destroyed by S-43 Plague with Heavy Machine Gun Last Messages --------------- 08657_ System corrupted: Energy discharge (-273). 08658_ Acquired Myomer Leg. 08660_ K-01 Serf cleans the Fabricator. 08660_ Acquired Myomer Leg. 08661_ K-01 Serf collects debris. 08666_ Acquired Adv. Heat Sink. 08667_ Dropped Adv. Heat Sink. 08668_ K-01 Serf collects debris. 08669_ Acquired 77 matter. 08670_ K-01 Serf collects debris. 08673_ System corrupted: Heat flow error (+286). 08674_ K-01 Serf collects debris. 08675_ Acquired Lgt. Antimatter Reactor. 08681_ Acquired Imp. Ion Engine. 08686_ Lgt. Antimatter Reactor destroyed. 08687_ Molecular Scythe follow-up attack on S-43 Plague. 08687_ S-43 Plague destroyed. [Achievement: Just Browsing] Map ----- +----------------------------------------------------+ | ######?# """ #???????????????????????? | | T""" #?# #???????????????????????? | | ###########+####+####???????????????????????? | | !! ## #????####??????????????????? | | + #???# ?????????????????? | | ! ## #???# ????????????????? | | [ ## #???# ?????????????????? | | ## #### #???# ?????????????????? | | ## #??# #???# #?????????????????? | | +###### #??# ##### #???# #?????????????????? | | #??# #??## #???# #?????????????????? | | #??# #???# #???# #?????????????????? | | ####+##### #???# #?????????????????? | | """" ## # #???# #?????????????????? | | """" ## # #???# #?????????????????? | | """" ## # #???# #?????????????????? | | """" ## # ##### #?????????????????? | | " ## # #?????????????????? | | ## + !#?????????????????? | | ## """" # """ ==#?????????????????? | | ## """" # """ !%#?????????????????? | | ####### ## "" " # s"""![k[#?????????????????? | | # ## "" # """% [#?????????????????? | | "" # ## " # s"""[ u[#?????????????????? | | "" + ## "" # =%s!= %#?????????????????? | | "" # ## "?""?# =@""" [#?????????????????? | | # ## ????# "" F"" #?????????????????? | | "" # ## ????#p """""" #?????????????????? | | "" # ## ????# """" #?????????????????? | | "" = # ## ????# #?????????????????? | | # #?###????# ] #?????????????????? | | ####### ??????? #?????????????????? | | ??????# ???? +?????????????????? | | ??????# ? #?????????????????? | | ??????# w #?????????????????? | | ??????######## """ """ #?????????????????? | | ???????????? """ """ A#######?????????????????? | | ??????????? """ """ #???????????????????????? | | ??????????# ?"" #???????????????????????? | | ??????????####???"" #???????????????????????? | | ?????????????????? ??? #???????????????????????? | | ?????????????????? ???? #???????????????????????? | | ????????????????? ????? #???????????????????????? | | ?????????????????????????#???????????????????????? | | ?????????????????????????????????????????????????? | | ?????????????????????????????????????????????????? | | ?????????????????????????????????????????????????? | | ?????????????????????????????????????????????????? | | ?????????????????????????????????????????????????? | | ?????????????????????????????????????????????????? | +----------------------------------------------------+ Best States ------------- Heat Dissipation 138 Energy Generation 59 Energy Capacity 1260 Matter Stores 300 Matter Capacity 300 Sight Range 16 Robot Scan Range 14 Terrain Scan Density 10 ECM Strength 2 Jamming Range 14 Base Temperature (-) 100 Corruption Containment 8 Armor Coverage 225 Weapon Shielding 66 Weapon Cycling 20 Phase Shifting 10 Evasion (%) 74 Targeting Accuracy 8 Melee Accuracy 12 Core Analysis 6 Recoil Reduction 3 Energy Filtering 30 Particle Charging 20 Offensive Hacking 12 Defensive Hacking 10 Item Schematics ----------------- Rocket Launcher | -8/Materials | Scanalyzed Particle Charger | -8/Materials | Scanalyzed Plasma Cutter | -8/Materials | Scanalyzed Mining Laser | -8/Materials | Scanalyzed EMP Blaster | -8/Materials | Scanalyzed Robot Schematics ------------------ None Fabricated ------------ Mining Laser | x3 | -7/Factory Alien Tech Used ----------------- None Achievements -------------- Dynamic Key Just Browsing More Dakka Please Total Silence Challenges ------------ None Game ------ Seed LargePhasingSabre Manual? 0 Play Time 02:31:07 Cumulative 23.2 hours Start 2024.08.31 @ 20:31:58 End 2024.09.01 @ 20:59:20 Sessions 2 Manual Loads 0 Difficulty Rogue Special Mode None Game No. 11 Rogue 11 Adventurer 0 Explorer 0 Win Type - Total 0 Types 0/0/0/0/0/0/0/0/0 Lore% 22 Gallery% 27 Achievement% 24 Wizard Run 0 Options --------- Layout 2 ASCII 0 Keyboard 0 Movement Mouse Keybinds 0 Fullscreen 1 Font 24/Smallcaps Map View 50x44 Zoom Use 0% Tactical HUD 1 Map Filters NONE Filters NONE Steam 1 RUN: b90a17b7-1464-400f-99d4-d5e14fadd321